[Event "FIDE World Cadets GU12 2022"]
[Site "Batumi"]
[Date "2022.09.20"]
[Round "5.17"]
[White "Zhumagali, Raian"]
[Black "Abramkina, Veranika"]
[Result "0-1"]
[ECO "B04"]
[WhiteElo "1278"]
[BlackElo "1445"]
[Annotator "NA RC COMBH"]
[PlyCount "148"]
[EventDate "2022.09.16"]
[EventType "swiss"]
[EventCountry "GEO"]
[SourceTitle "playchess.com"]
[Source "ChessBase"]
[SourceQuality "1"]
[TimeControl "5400+30"]

1. e4 {[%emt 0:01:00]} Nf6 {[%emt 0:01:00]} 2. e5 {[%emt 0:00:00]} Nd5 {[%emt 0:00:30]} 3. d4 {[%emt 0:00:00]} d6 {[%emt 0:00:00]} 4. Nf3 {[%emt 0:03:30]} g6 {[%emt 0:00:00]} 5. c4 {[%emt 0:01:30]} Nb6 {[%emt 0:00:00]} 6. Nc3 {[%emt 0:03:30]} Bg7 {[%emt 0:00:00]} 7. exd6 {[%emt 0:08:30]} cxd6 {[%emt 0:00:30]} 8. Be2 {[%emt 0:00:30]} O-O {[%emt 0:00:00]} 9. O-O {[%emt 0:01:30]} Nc6 {[%emt 0:00:00]} 10. Be3 {[%emt 0:04:30]} Bg4 {[%emt 0:00:00]} 11. b3 {[%emt 0:01:30]} d5 {[%emt 0:01:00]} 12. c5 {[%emt 0:00:30]} Nc8 {[%emt 0:00:00]} 13. a3 {[%emt 0:01:30]} e6 {[%emt 0:01:00]} 14. b4 {[%emt 0:01:30]} a6 {[%emt 0:03:30]} 15. h3 {[%emt 0:01:30]} Bxf3 {[%emt 0:00:30]} 16. Bxf3 {[%emt 0:00:30]} N8e7 {[%emt 0:00:00]} 17. Ne2 {[%emt 0:04:30]} Nf5 {[%emt 0:01:00]} 18. Bg4 {[%emt 0:10:30]} Nxe3 {[%emt 0:04:30]} 19. fxe3 {[%emt 0:00:30]} h5 {[%emt 0:00:30]} 20. Bf3 {[%emt 0:00:30]} Bh6 {[%emt 0:00:00]} 21. Qd3 {[%emt 0:07:30]} Qg5 {[%emt 0:11:00]} 22. Nf4 {[%emt 0:05:30]} Rad8 {[%emt 0:01:30]} 23. Qc3 {[%emt 0:14:30]} e5 {[%emt 0:07:30]} 24. dxe5 {[%emt 0:07:30]} d4 {[%emt 0:00:30]} 25. Qb2 {[%emt 0:09:19]} Qxe5 {[%emt 0:00:30]} 26. Bxc6 {[%emt 0:05:40]} Qxe3+ {[%emt 0:01:30]} 27. Qf2 {[%emt 0:01:51]} bxc6 {[%emt 0:03:30]} 28. Qxe3 {[%emt 0:00:30]} dxe3 {[%emt 0:00:30]} 29. g3 {[%emt 0:02:08]} Rfe8 {[%emt 0:10:30]} 30. Ne2 {[%emt 0:02:35]} Rd2 {[%emt 0:01:30]} 31. Rfe1 {[%emt 0:00:11]} Red8 {[%emt 0:06:30]} 32. Kf1 {[%emt 0:00:48]} R8d5 {[%emt 0:07:30]} 33. Nf4 {[%emt 0:00:52]} Rf5 {[%emt 0:00:00]} 34. Kg1 {[%emt 0:00:32]} h4 {[%emt 0:01:00]} 35. Ng2 {[%emt 0:00:31]} Rf3 {[%emt 0:01:30]} 36. Red1 {[%emt 0:00:29]} Rxg3 {[%emt 0:01:30]} 37. Rxd2 {[%emt 0:00:30]} exd2 {[%emt 0:00:00]} 38. Kh2 {[%emt 0:00:25]} Rc3 {[%emt 0:00:00]} 39. Rd1 {[%emt 0:00:30]} Rc1 {[%emt 0:00:30]} 40. Rxd2 {[%emt 0:00:00]} Bxd2 {[%emt 0:00:00]} 41. Nxh4 {[%emt 0:00:09]} Rc3 {[%emt 0:00:00]} 42. Kg2 {[%emt 0:00:30]} Rxa3 {[%emt 0:00:30]} 43. Nf3 {[%emt 0:00:30]} Rb3 {[%emt 0:00:00]} 44. Nd4 {[%emt 0:00:00]} Rxb4 {[%emt 0:00:00]} 45. Nxc6 {[%emt 0:00:00]} Rc4 {[%emt 0:00:30]} 46. Ne7+ {[%emt 0:00:03]} Kf8 {[%emt 0:00:30]} 47. Nd5 {[%emt 0:00:30]} Rxc5 {[%emt 0:00:30]} 48. Nb6 {[%emt 0:00:00]} Ke7 {[%emt 0:00:00]} 49. Kf2 {[%emt 0:00:00]} a5 {[%emt 0:00:00]} 50. Ke2 {[%emt 0:00:00]} Bb4 {[%emt 0:00:00]} 51. Kd1 {[%emt 0:00:00]} Rb5 {[%emt 0:00:00]} 52. Na4 {[%emt 0:00:16]} f5 {[%emt 0:00:30]} 53. Nb2 {[%emt 0:00:30]} f4 {[%emt 0:00:30]} 54. Ke2 {[%emt 0:00:00]} Bd6 {[%emt 0:00:00]} 55. Nc4 {[%emt 0:00:00]} a4 {[%emt 0:00:00]} 56. Kf3 {[%emt 0:00:00]} a3 {[%emt 0:00:30]} 57. Nxa3 {[%emt 0:00:16]} Bxa3 {[%emt 0:00:30]} 58. Kxf4 {[%emt 0:00:00]} Kf6 {[%emt 0:00:00]} 59. Kg4 {[%emt 0:00:00]} Rb4+ {[%emt 0:00:00]} 60. Kf3 {[%emt 0:00:06]} Rd4 {[%emt 0:00:00]} 61. Kg3 {[%emt 0:00:30]} Re4 {[%emt 0:00:00]} 62. Kf3 {[%emt 0:00:30]} Kf5 {[%emt 0:00:30]} 63. Kg3 {[%emt 0:00:30]} Re3+ {[%emt 0:00:00]} 64. Kg2 {[%emt 0:00:00]} Kf4 {[%emt 0:00:00]} 65. h4 {[%emt 0:00:00]} Kg4 {[%emt 0:00:00]} 66. Kf2 {[%emt 0:00:00]} Bc5 {[%emt 0:00:00]} 67. Kg2 {[%emt 0:00:00]} Re2+ {[%emt 0:00:00]} 68. Kf1 {[%emt 0:00:00]} Ra2 {[%emt 0:00:00]} 69. Ke1 {[%emt 0:00:00]} Kf3 {[%emt 0:00:30]} 70. Kd1 {[%emt 0:00:18]} Ke3 {[%emt 0:00:30]} 71. Kc1 {[%emt 0:00:30]} Kd3 {[%emt 0:00:00]} 72. Kb1 {[%emt 0:00:00]} Rg2 {[%emt 0:00:00]} 73. h5 {[%emt 0:00:00]} gxh5 {[%emt 0:00:00]} 74. Ka1 {[%emt 0:00:00]} Kc3 {[%emt 0:00:00]} 0-1

[Event "FIDE World Cadets GU12 2022"]
[Site "Batumi"]
[Date "2022.09.20"]
[Round "5.18"]
[White "Kush, Agniya"]
[Black "Vizcarra Quispe, Ramalia Bellaluz"]
[Result "0-1"]
[ECO "A60"]
[WhiteElo "1131"]
[BlackElo "1429"]
[Annotator "NA RC COMBH"]
[PlyCount "96"]
[EventDate "2022.09.16"]
[EventType "swiss"]
[EventCountry "GEO"]
[SourceTitle "playchess.com"]
[Source "ChessBase"]
[SourceQuality "1"]
[TimeControl "5400+30"]

1. d4 {[%emt 0:01:00]} c5 {[%emt 0:01:00]} 2. d5 {[%emt 0:00:30]} Nf6 {[%emt 0:00:30]} 3. c4 {[%emt 0:00:30]} e6 {[%emt 0:00:30]} 4. Nc3 {[%emt 0:00:00]} exd5 {[%emt 0:00:00]} 5. cxd5 {[%emt 0:00:00]} d6 {[%emt 0:00:00]} 6. Bg5 {[%emt 0:00:00]} h6 {[%emt 0:02:30]} 7. Bh4 {[%emt 0:01:00]} Be7 {[%emt 0:00:30]} 8. Nf3 {[%emt 0:00:30]} Bg4 {[%emt 0:02:30]} 9. h3 {[%emt 0:00:30]} Bxf3 {[%emt 0:00:30]} 10. exf3 {[%emt 0:00:00]} O-O {[%emt 0:00:30]} 11. Bg3 {[%emt 0:01:00]} a6 {[%emt 0:00:00]} 12. a4 {[%emt 0:00:30]} Nbd7 {[%emt 0:01:00]} 13. Be2 {[%emt 0:02:30]} Qb6 {[%emt 0:10:30]} 14. Qc2 {[%emt 0:00:30]} Qa5 {[%emt 0:00:30]} 15. O-O {[%emt 0:00:30]} Nb6 {[%emt 0:00:00]} 16. Rad1 {[%emt 0:02:30]} Rac8 {[%emt 0:05:00]} 17. Bh4 {[%emt 0:08:30]} Rfd8 {[%emt 0:01:30]} 18. Rfe1 {[%emt 0:04:30]} c4 {[%emt 0:02:30]} 19. Bxc4 {[%emt 0:07:30]} Rxc4 {[%emt 0:00:00]} 20. Rxe7 {[%emt 0:00:30]} Rxh4 {[%emt 0:02:00]} 21. Qf5 {[%emt 0:00:30]} Rh5 {[%emt 0:00:30]} 22. Qf4 {[%emt 0:00:30]} Nbxd5 {[%emt 0:00:30]} 23. Nxd5 {[%emt 0:01:30]} Rxd5 {[%emt 0:00:30]} 24. Rde1 {[%emt 0:07:30]} Re5 {[%emt 0:05:30]} 25. R1xe5 {[%emt 0:05:30]} dxe5 {[%emt 0:00:30]} 26. Rxe5 {[%emt 0:00:30]} Qc7 {[%emt 0:00:00]} 27. g3 {[%emt 0:11:30]} Rd5 {[%emt 0:02:00]} 28. Rxd5 {[%emt 0:02:30]} Nxd5 {[%emt 0:00:00]} 29. Qe4 {[%emt 0:07:30]} Qc6 {[%emt 0:00:00]} 30. Qd3 {[%emt 0:09:30]} b5 {[%emt 0:02:30]} 31. a5 {[%emt 0:05:30]} g6 {[%emt 0:00:30]} 32. Qd4 {[%emt 0:03:51]} b4 {[%emt 0:01:30]} 33. Qe5 {[%emt 0:08:59]} Qb5 {[%emt 0:03:30]} 34. Kg2 {[%emt 0:03:44]} Qxa5 {[%emt 0:00:30]} 35. Qe8+ {[%emt 0:00:30]} Kg7 {[%emt 0:00:30]} 36. Qe5+ {[%emt 0:00:00]} Kh7 {[%emt 0:00:00]} 37. Qe8 {[%emt 0:01:15]} Qc7 {[%emt 0:00:00]} 38. Qa8 {[%emt 0:01:27]} Qd6 {[%emt 0:00:00]} 39. Qe8 {[%emt 0:00:54]} Kg7 {[%emt 0:00:00]} 40. Qe4 {[%emt 0:01:10]} Nf6 {[%emt 0:00:00]} 41. Qc4 {[%emt 0:00:30]} a5 {[%emt 0:00:00]} 42. b3 {[%emt 0:00:56]} Qd5 {[%emt 0:00:30]} 43. Qc2 {[%emt 0:00:08]} Qb5 {[%emt 0:00:00]} 44. Qb2 {[%emt 0:00:31]} a4 {[%emt 0:00:00]} 45. h4 {[%emt 0:01:16]} a3 {[%emt 0:00:00]} 46. Qa1 {[%emt 0:02:27]} Qc5 {[%emt 0:00:00]} 47. g4 {[%emt 0:00:13]} Qc3 {[%emt 0:00:30]} 48. Qb1 {[%emt 0:00:30]} Qb2 {[%emt 0:00:00]} 0-1

[Event "FIDE World Cadets GU12 2022"]
[Site "Batumi"]
[Date "2022.09.20"]
[Round "5.19"]
[White "Khafizova, Diana"]
[Black "Semenova, Vasilisa"]
[Result "1-0"]
[ECO "D02"]
[WhiteElo "1411"]
[BlackElo "1332"]
[Annotator "NA COMBH"]
[PlyCount "177"]
[EventDate "2022.09.16"]
[EventType "swiss"]
[EventCountry "GEO"]
[SourceTitle "playchess.com"]
[Source "ChessBase"]
[SourceQuality "1"]
[TimeControl "5400+30"]

1. d4 d5 2. Bf4 Nf6 3. e3 e6 4. Nf3 Bd6 5. Bg3 O-O 6. c4 c6 7. Nc3 Ne4 8. Qc2 f5 9. Bd3 Qe7 10. Bh4 Qe8 11. Qb3 Nd7 12. O-O Ndf6 13. Ne2 Qh5 14. Ng3 Bxg3 15. Bxg3 Nxg3 16. hxg3 Ne4 17. Qd1 Nf6 18. Ne5 Qxd1 19. Rfxd1 Nd7 20. f4 Nxe5 21. dxe5 Rd8 22. Be2 Bd7 23. Kf2 Be8 24. Rac1 dxc4 25. Bxc4 Bf7 26. e4 fxe4 27. Ke3 Kf8 28. Kxe4 Ke7 29. Ke3 Bh5 30. Rh1 Bg6 31. g4 Rh8 32. Rcd1 Rad8 33. Be2 Rxd1 34. Rxd1 h6 35. g3 Rd8 36. Rf1 Bf7 37. Bc4 h5 38. gxh5 Bxh5 39. g4 Bf7 40. Rh1 Bg6 41. Rg1 b5 42. Be2 Rd5 43. Rc1 Be8 44. Bf3 Rd8 45. Be4 Kf8 46. Rc2 Rc8 47. b4 Kf7 48. f5 exf5 49. gxf5 a5 50. a3 axb4 51. axb4 Ra8 52. Kd4 Rd8+ 53. Kc5 Ke7 54. Rg2 Kf8 55. Rc2 Ke7 56. Ra2 Rd1 57. Rc2 Re1 58. f6+ gxf6 59. exf6+ Kxf6 60. Bxc6 Bxc6 61. Kxc6 Re5 62. Rc5 Re4 63. Kxb5 Ke6 64. Ka5 Kd6 65. Rc1 Kd7 66. b5 Re6 67. b6 Re2 68. Ka6 Ra2+ 69. Kb7 Ra3 70. Rc4 Kd6 71. Kb8 Kd7 72. Rc2 Ra1 73. b7 Kd8 74. Rd2+ Ke7 75. Rd4 Ra2 76. Kc7 Rc2+ 77. Kb6 Rb2+ 78. Kc6 Rc2+ 79. Kb5 Rb2+ 80. Rb4 Rxb4+ 81. Kxb4 Kf7 82. b8=Q Kg7 83. Qf4 Kh8 84. Qg5 Kh7 85. Kc5 Kh8 86. Kd6 Kh7 87. Ke7 Kh8 88. Kf7 Kh7 89. Qg7# 1-0

[Event "FIDE World Cadets GU12 2022"]
[Site "Batumi"]
[Date "2022.09.21"]
[Round "6.1"]
[White "Kaliakhmet, Elnaz"]
[Black "Merkulova, Victoria"]
[Result "1-0"]
[ECO "A57"]
[WhiteElo "1864"]
[BlackElo "1715"]
[Annotator "NA RC COMBH"]
[PlyCount "101"]
[EventDate "2022.09.16"]
[EventType "swiss"]
[EventCountry "GEO"]
[SourceTitle "playchess.com"]
[Source "ChessBase"]
[SourceQuality "1"]
[TimeControl "5400+30"]

1. d4 {[%emt 0:01:00]} Nf6 {[%emt 0:01:00]} 2. c4 {[%emt 0:00:30]} c5 {[%emt 0:00:30]} 3. d5 {[%emt 0:00:30]} b5 {[%emt 0:00:30]} 4. cxb5 {[%emt 0:00:00]} a6 {[%emt 0:00:00]} 5. e3 {[%emt 0:00:00]} axb5 {[%emt 0:00:00]} 6. Bxb5 {[%emt 0:00:00]} Qa5+ {[%emt 0:00:00]} 7. Nc3 {[%emt 0:00:00]} Bb7 {[%emt 0:00:00]} 8. Bd2 {[%emt 0:06:30]} Qb6 {[%emt 0:00:00]} 9. Bc4 {[%emt 0:10:30]} e6 {[%emt 0:04:00]} 10. Nf3 {[%emt 0:26:30]} exd5 {[%emt 0:04:30]} 11. Bb3 {[%emt 0:01:30]} Bd6 {[%emt 0:11:30]} 12. O-O {[%emt 0:00:30]} O-O {[%emt 0:00:00]} 13. Rc1 {[%emt 0:04:30]} Na6 {[%emt 0:06:00]} 14. h3 {[%emt 0:09:30]} Bc6 {[%emt 0:09:30]} 15. Nh4 {[%emt 0:16:30]} Rfe8 {[%emt 0:09:30]} 16. Nf5 {[%emt 0:00:30]} Bf8 {[%emt 0:03:30]} 17. Qf3 {[%emt 0:08:15]} g6 {[%emt 0:11:30]} 18. Nh6+ {[%emt 0:05:25]} Bxh6 {[%emt 0:00:30]} 19. Qxf6 {[%emt 0:00:09]} Qb7 {[%emt 0:01:30]} 20. Nxd5 {[%emt 0:02:53]} Bg7 {[%emt 0:10:30]} 21. Ne7+ {[%emt 0:00:42]} Rxe7 {[%emt 0:06:30]} 22. Qxe7 {[%emt 0:00:07]} d5 {[%emt 0:00:34]} 23. Qxb7 {[%emt 0:00:30]} Bxb7 {[%emt 0:00:26]} 24. Rfd1 {[%emt 0:01:44]} c4 {[%emt 0:01:05]} 25. Bc2 {[%emt 0:00:26]} Nc5 {[%emt 0:01:35]} 26. Bb4 {[%emt 0:00:18]} Ne6 {[%emt 0:01:03]} 27. b3 {[%emt 0:01:58]} Rxa2 {[%emt 0:02:28]} 28. bxc4 {[%emt 0:00:05]} dxc4 {[%emt 0:01:05]} 29. Bb1 {[%emt 0:00:36]} Ra4 {[%emt 0:00:34]} 30. Rxc4 {[%emt 0:02:40]} Ba6 {[%emt 0:03:31]} 31. Bc2 {[%emt 0:00:20]} Ra2 {[%emt 0:01:32]} 32. Rc6 {[%emt 0:00:16]} Bb7 {[%emt 0:00:51]} 33. Rb6 {[%emt 0:00:30]} Rxc2 {[%emt 0:00:30]} 34. Rxb7 {[%emt 0:00:00]} Be5 {[%emt 0:02:37]} 35. f4 {[%emt 0:00:18]} Bc7 {[%emt 0:00:37]} 36. Bd6 {[%emt 0:00:52]} Ba5 {[%emt 0:01:55]} 37. Be5 {[%emt 0:00:24]} Rc8 {[%emt 0:00:51]} 38. Rb8 {[%emt 0:01:14]} Rxb8 {[%emt 0:00:30]} 39. Bxb8 {[%emt 0:00:30]} Bb6 {[%emt 0:00:30]} 40. Kf2 {[%emt 0:00:00]} Nc5 {[%emt 0:00:14]} 41. Kf3 {[%emt 0:00:47]} f5 {[%emt 0:00:41]} 42. Be5 {[%emt 0:00:32]} Ne4 {[%emt 0:01:01]} 43. Rd7 {[%emt 0:00:37]} Bc5 {[%emt 0:01:15]} 44. Rg7+ {[%emt 0:00:23]} Kf8 {[%emt 0:00:27]} 45. Rxh7 {[%emt 0:00:26]} Be7 {[%emt 0:00:24]} 46. Rh8+ {[%emt 0:00:30]} Kf7 {[%emt 0:00:00]} 47. Ra8 {[%emt 0:00:15]} Nd2+ {[%emt 0:00:20]} 48. Ke2 {[%emt 0:00:30]} Ne4 {[%emt 0:00:07]} 49. g4 {[%emt 0:00:00]} fxg4 {[%emt 0:00:30]} 50. hxg4 {[%emt 0:00:00]} Ke6 {[%emt 0:00:21]} 51. Bd4 {[%emt 0:00:36]} 1-0

[Event "FIDE World Cadets GU12 2022"]
[Site "Batumi"]
[Date "2022.09.21"]
[Round "6.2"]
[White "Shubhi Gupta"]
[Black "Aydogan, Arya"]
[Result "1-0"]
[ECO "D00"]
[WhiteElo "1733"]
[BlackElo "1489"]
[Annotator "NA RC COMBH"]
[PlyCount "81"]
[EventDate "2022.09.16"]
[EventType "swiss"]
[EventCountry "GEO"]
[SourceTitle "playchess.com"]
[Source "ChessBase"]
[SourceQuality "1"]
[TimeControl "5400+30"]

1. d4 {[%emt 0:01:00]} d5 {[%emt 0:01:00]} 2. Nc3 {[%emt 0:01:30]} Bf5 {[%emt 0:04:30]} 3. Bf4 {[%emt 0:03:30]} Nf6 {[%emt 0:02:30]} 4. e3 {[%emt 0:01:30]} e6 {[%emt 0:01:30]} 5. f3 {[%emt 0:02:30]} Bd6 {[%emt 0:04:30]} 6. g4 {[%emt 0:04:30]} Bxf4 {[%emt 0:04:30]} 7. exf4 {[%emt 0:00:30]} Bg6 {[%emt 0:00:30]} 8. Qe2 {[%emt 0:01:30]} Qe7 {[%emt 0:03:30]} 9. O-O-O {[%emt 0:05:30]} Nbd7 {[%emt 0:10:30]} 10. Re1 {[%emt 0:03:30]} h6 {[%emt 0:01:30]} 11. h4 {[%emt 0:05:30]} O-O-O {[%emt 0:04:30]} 12. f5 {[%emt 0:08:30]} Bh7 {[%emt 0:00:00]} 13. g5 {[%emt 0:03:30]} Nh5 {[%emt 0:06:00]} 14. g6 {[%emt 0:14:30]} Ng3 {[%emt 0:11:30]} 15. Qh2 {[%emt 0:01:30]} Nxf1 {[%emt 0:02:30]} 16. Nxd5 {[%emt 0:08:30]} exd5 {[%emt 0:11:30]} 17. Rxe7 {[%emt 0:00:30]} Nxh2 {[%emt 0:00:30]} 18. gxh7 {[%emt 0:00:30]} Nf1 {[%emt 0:07:30]} 19. Ne2 {[%emt 0:00:30]} Rde8 {[%emt 0:03:45]} 20. Rxe8+ {[%emt 0:00:30]} Rxe8 {[%emt 0:00:11]} 21. Rxf1 {[%emt 0:00:30]} Nf6 {[%emt 0:00:30]} 22. Nf4 {[%emt 0:00:30]} Nxh7 {[%emt 0:01:11]} 23. Rg1 {[%emt 0:02:30]} g5 {[%emt 0:00:30]} 24. fxg6 {[%emt 0:00:30]} fxg6 {[%emt 0:00:30]} 25. Rxg6 {[%emt 0:00:30]} c6 {[%emt 0:07:09]} 26. Rxh6 {[%emt 0:00:30]} Rf8 {[%emt 0:00:49]} 27. Ng6 {[%emt 0:01:30]} Rf7 {[%emt 0:00:52]} 28. Ne5 {[%emt 0:00:30]} Rg7 {[%emt 0:00:00]} 29. f4 {[%emt 0:00:30]} Kc7 {[%emt 0:02:59]} 30. f5 {[%emt 0:01:30]} Rg1+ {[%emt 0:00:45]} 31. Kd2 {[%emt 0:00:30]} Rg2+ {[%emt 0:00:30]} 32. Kd3 {[%emt 0:00:00]} Nf8 {[%emt 0:00:13]} 33. Rh8 {[%emt 0:00:00]} Rg3+ {[%emt 0:00:00]} 34. Ke2 {[%emt 0:00:30]} Nd7 {[%emt 0:00:59]} 35. Rh7 {[%emt 0:00:30]} Rg2+ {[%emt 0:00:30]} 36. Kf3 {[%emt 0:00:30]} Rxc2 {[%emt 0:00:00]} 37. Rxd7+ {[%emt 0:00:30]} Kb6 {[%emt 0:00:24]} 38. f6 {[%emt 0:00:30]} Rxb2 {[%emt 0:00:30]} 39. f7 {[%emt 0:00:30]} Rb1 {[%emt 0:00:00]} 40. Kf4 {[%emt 0:00:00]} Rf1+ {[%emt 0:00:00]} 41. Nf3 {[%emt 0:00:00]} 1-0

[Event "FIDE World Cadets GU12 2022"]
[Site "Batumi"]
[Date "2022.09.21"]
[Round "6.3"]
[White "Mgeladze, Kesaria"]
[Black "Shreya G Hipparagi"]
[Result "1-0"]
[ECO "C45"]
[WhiteElo "1771"]
[BlackElo "1574"]
[Annotator "NA RC COMBH"]
[PlyCount "51"]
[EventDate "2022.09.16"]
[EventType "swiss"]
[EventCountry "GEO"]
[SourceTitle "playchess.com"]
[Source "ChessBase"]
[SourceQuality "1"]
[TimeControl "5400+30"]

1. e4 {[%emt 0:01:00]} e5 {[%emt 0:01:00]} 2. Nf3 {[%emt 0:00:30]} Nc6 {[%emt 0:00:30]} 3. d4 {[%emt 0:00:30]} exd4 {[%emt 0:00:30]} 4. Nxd4 {[%emt 0:00:00]} Bc5 {[%emt 0:00:00]} 5. Nb3 {[%emt 0:00:00]} Bb6 {[%emt 0:00:00]} 6. Qe2 {[%emt 0:00:00]} d6 {[%emt 0:00:30]} 7. Be3 {[%emt 0:00:00]} Be6 {[%emt 0:04:30]} 8. Nc3 {[%emt 0:00:00]} Qe7 {[%emt 0:05:30]} 9. g3 {[%emt 0:01:00]} Ne5 {[%emt 0:03:30]} 10. Bxb6 {[%emt 0:07:30]} axb6 {[%emt 0:02:30]} 11. Bg2 {[%emt 0:04:30]} Nf6 {[%emt 0:07:30]} 12. O-O-O {[%emt 0:16:30]} O-O-O {[%emt 0:02:30]} 13. Nd4 {[%emt 0:04:30]} Bd7 {[%emt 0:05:30]} 14. h3 {[%emt 0:04:30]} Nc6 {[%emt 0:02:30]} 15. Ndb5 {[%emt 0:07:30]} Rhe8 {[%emt 0:06:30]} 16. Qc4 {[%emt 0:09:30]} Be6 {[%emt 0:13:30]} 17. Qa4 {[%emt 0:02:30]} Nd7 {[%emt 0:02:30]} 18. Qa8+ {[%emt 0:10:30]} Ndb8 {[%emt 0:00:30]} 19. e5 {[%emt 0:04:30]} d5 {[%emt 0:10:30]} 20. Nxd5 {[%emt 0:00:30]} Bxd5 {[%emt 0:01:30]} 21. Bxd5 {[%emt 0:00:30]} Rxd5 {[%emt 0:00:30]} 22. Rxd5 {[%emt 0:00:30]} Qg5+ {[%emt 0:00:30]} 23. Kb1 {[%emt 0:01:30]} Qf5 {[%emt 0:03:30]} 24. Rhd1 {[%emt 0:00:30]} Qxh3 {[%emt 0:00:30]} 25. f4 {[%emt 0:02:30]} Qxg3 {[%emt 0:00:30]} 26. Rd7 {[%emt 0:00:30]} 1-0

[Event "FIDE World Cadets GU12 2022"]
[Site "Batumi"]
[Date "2022.09.21"]
[Round "6.4"]
[White "Urangoo, Gurvanbaatar"]
[Black "Ismayilova, Khanim"]
[Result "0-1"]
[ECO "B33"]
[WhiteElo "1391"]
[BlackElo "1901"]
[Annotator "TA"]
[PlyCount "86"]
[EventDate "2022.09.16"]
[EventType "swiss"]
[EventCountry "GEO"]
[SourceTitle "playchess.com"]
[Source "ChessBase"]
[SourceQuality "1"]
[TimeControl "5400+30"]

{[%evp 23,86,6,5,12,12,12,16,7,36,30,52,25,21,21,37,28,41,-31,-25,-54,-47,-41,-22,-14,0,-20,0,0,27,27,26,44,77,33,38,45,122,0,45,-17,0,-9,0,-139,-141,-69,-103,-683,-651,-642,-667,-944,-95,-141,-101,-29983,-29983,-29988,-29989,-29990,-29991,-29991,-29990,-29990,-29991]} 1. e4 {[%emt 0:01:00]} c5 {[%emt 0:01:00]} 2. Nf3 {[%emt 0:00:30][%cal Bg1f3,Bf3d4,Bd4b5,Bb5a3,Ba3c2][%mdl 32]} Nc6 {[%emt 0:00:30]} 3. d4 {[%emt 0:00:30]} cxd4 {[%emt 0:00:30]} 4. Nxd4 {[%emt 0:00:30]} Nf6 {[%emt 0:00:30]} 5. Nc3 {[%emt 0:00:00]} e5 {[%emt 0:00:00]} 6. Ndb5 {[%emt 0:00:00]} d6 {[%emt 0:00:00]} 7. Bg5 {[%emt 0:00:00]} a6 {[%emt 0:00:00]} 8. Na3 {[%emt 0:00:00]} b5 {[%emt 0:00:00]} 9. Nd5 {[%emt 0:00:30]} Be7 {[%emt 0:00:30]} 10. Bxf6 {[%emt 0:00:30]} Bxf6 {[%emt 0:00:00]} 11. c4 {[%emt 0:00:00]} b4 {[%emt 0:00:00]} 12. Nc2 {[%emt 0:00:00]} a5 {[%emt 0:00:00]} 13. Qf3 {[%emt 0:00:00] B33: Sicilian: Pelikan and Sveshnikov Variations.} Bg5 {[%emt 0:06:00]} 14. h4 {[%emt 0:00:00]} Be7 {[%emt 0:05:30]} 15. Rd1 {[%emt 0:03:30][%cal Oc4c5] The position is equal.} Be6 {[%emt 0:02:30]} 16. c5 {[%emt 0:03:30] aiming for Bb5.} dxc5 {[%emt 0:23:30] [#]} 17. Nf6+ {[%emt 0:07:30][%mdl 64] Discovered Attack} Bxf6 {[%emt 0:00:30]} 18. Rxd8+ {[%emt 0:00:30]} Rxd8 {[%emt 0:00:30]} 19. Bb5 {[%emt 0:00:30] [#]} Rd6 $146 {[%emt 0:00:00]} ({Predecessor:} 19... Bd7 20. g3 O-O 21. O-O Nd4 22. Nxd4 cxd4 23. Bxd7 Rxd7 24. Qf5 Rc7 25. f3 Rd8 {0-1 (62) Weishaeutel,M (1431)-Svane,F (1715) Oberhof 2013}) 20. b3 {[%emt 0:20:30]} (20. Ne3 $14) 20... O-O $15 {[%emt 0:05:00]} 21. O-O {[%emt 0:07:30]} Nd4 {[%emt 0:06:30]} 22. Nxd4 {[%emt 0:00:30]} cxd4 {[%emt 0:05:30]} 23. Rc1 $1 {[%emt 0:01:30]} Bxh4 {[%emt 0:02:30][%cal Oa5a4]} 24. Rc5 {[%emt 0:02:30]} Bf6 {[%emt 0:03:30]} 25. Qd3 {[%emt 0:03:30]} Rc8 {[%emt 0:02:30]} 26. Rxc8+ {[%emt 0:05:30]} Bxc8 {[%emt 0:00:30]} 27. Qc2 {[%emt 0:00:30]} Rd8 {[%emt 0:04:30]} 28. Bd3 {[%emt 0:02:30][%mdl 1024] White has strong compensation.} Be6 {[%emt 0:03:30]} 29. Qc7 {[%emt 0:01:30]} Ra8 {[%emt 0:01:30]} (29... g6 $14) 30. g3 {[%emt 0:03:30]} (30. Bc4 $1 $16) 30... g6 {[%emt 0:04:30]} 31. Kf1 {[%emt 0:05:30]} (31. Bc4 $14) 31... Kg7 $11 {[%emt 0:01:30]} 32. Qc5 {[%emt 0:00:30]} h5 {[%emt 0:03:47][%cal Bh7h5,Bh5h4,Bh4h3][%mdl 32]} 33. f4 {[%emt 0:06:30]} (33. Qb5 $11 {keeps the balance.}) 33... Rc8 $1 $17 {[%emt 0:02:38]} 34. Qxa5 {[%emt 0:01:30]} Rc3 {[%emt 0:00:33]} 35. Ke2 {[%emt 0:09:33][%mdl 8192] [#]} (35. Qb5 $17) 35... h4 $1 $19 {[%emt 0:03:06]} 36. f5 {[%emt 0:04:50] [#]} h3 $1 {[%emt 0:03:55]} 37. Kf2 {[%emt 0:01:27]} Bxf5 {[%emt 0:02:39]} (37... Rc1 $19 {has better winning chances. ( -> ...h2)} 38. Bf1 h2) 38. exf5 $17 {[%emt 0:01:34] Strongly threatening Bc4.} Rxd3 $19 {[%emt 0:00:13] KQ-KRB} 39. g4 $2 {[%emt 0:02:03][%mdl 8192]} (39. fxg6 $17 Kxg6 40. Qa8) 39... Bh4+ {[%emt 0:01:42] Black mates.} 40. Kf1 {[%emt 0:01:16]} Re3 {[%emt 0:01:17][%csl Gh4][%cal Re3e1]} 41. f6+ {[%emt 0:01:31]} Kh7 {[%emt 0:01:04][%csl Gh4][%cal Re3e1]} 42. Qxb4 {[%emt 0:00:59]} Re1+ {[%emt 0:00:30]} 43. Qxe1 {[%emt 0:00:30]} Bxe1 {[%emt 0:00:00] Weighted Error Value: White=0.53/Black=0.24 (precise)} 0-1